[Event "Early-Titled-Tuesday-Blitz-March-26-2024"]
[Site "Chess.com"]
[Date "2024.03.26"]
[Round "1"]
[White "Aisen1011"]
[Black "AlexeiShirov"]
[Result "0-1"]
[WhiteElo "2473"]
[BlackElo "2859"]
[TimeControl "180+1"]
[EndTime "8:07:39 PDT"]
[Termination "AlexeiShirov won by resignation"]

1. d4 {[%clk 0:02:59.4]} 1... d5 {[%clk 0:02:59]} 2. c4 {[%clk 0:02:59.5]} 2...
c6 {[%clk 0:02:58.5]} 3. Nc3 {[%clk 0:02:59.3]} 3... Nf6 {[%clk 0:02:57.6]} 4.
Nf3 {[%clk 0:02:59.6]} 4... e6 {[%clk 0:02:56.9]} 5. g3 {[%clk 0:02:59.6]} 5...
dxc4 {[%clk 0:02:55.4]} 6. a4 {[%clk 0:02:59.2]} 6... c5 {[%clk 0:02:49.6]} 7.
Bg2 {[%clk 0:02:57.8]} 7... Nc6 {[%clk 0:02:48.2]} 8. dxc5 {[%clk 0:02:47.7]}
8... Qxd1+ {[%clk 0:02:46.4]} 9. Nxd1 {[%clk 0:02:48.6]} 9... Bxc5 {[%clk
0:02:33.2]} 10. O-O {[%clk 0:02:48.5]} 10... Ke7 {[%clk 0:02:25.6]} 11. Be3
{[%clk 0:02:38.6]} 11... Bb4 {[%clk 0:02:17]} 12. Rc1 {[%clk 0:02:31.2]} 12...
Na5 {[%clk 0:02:15.6]} 13. Ne5 {[%clk 0:02:28]} 13... Nd5 {[%clk 0:02:08.2]} 14.
Nxc4 {[%clk 0:02:21.8]} 14... Nb3 {[%clk 0:02:07.2]} 15. Rb1 {[%clk 0:02:07.9]}
15... Nxe3 {[%clk 0:02:05.4]} 16. Ndxe3 {[%clk 0:01:59.7]} 16... Rd8 {[%clk
0:02:02.4]} 17. Rfd1 {[%clk 0:01:58.2]} 17... Bd7 {[%clk 0:01:35.3]} 18. Bxb7
{[%clk 0:01:57.5]} 18... Rab8 {[%clk 0:01:34.7]} 19. Bg2 {[%clk 0:01:04.8]}
19... Bxa4 {[%clk 0:01:33.1]} 20. Ne5 {[%clk 0:01:04.3]} 20... Rxd1+ {[%clk
0:01:24.1]} 21. Nxd1 {[%clk 0:00:41.4]} 21... Rc8 {[%clk 0:01:08.6]} 22. Nd3
{[%clk 0:00:30]} 22... Ba5 {[%clk 0:01:02.5]} 23. h4 {[%clk 0:00:13.6]} 23...
Bb5 {[%clk 0:00:59.8]} 24. Ne3 {[%clk 0:00:06]} 24... Nd4 {[%clk 0:00:56.1]} 25.
Bf1 {[%clk 0:00:04.9]} 25... Bd2 {[%clk 0:00:49.3]} 26. Ra1 {[%clk 0:00:04.4]}
26... a5 {[%clk 0:00:45.3]} 27. Kg2 {[%clk 0:00:02.8]} 27... Bxe3 {[%clk
0:00:40.8]} 28. fxe3 {[%clk 0:00:03.7]} 28... Nb3 {[%clk 0:00:37.1]} 29. Ra3
{[%clk 0:00:04]} 29... a4 {[%clk 0:00:36.1]} 30. e4 {[%clk 0:00:04.2]} 30... Rc2
{[%clk 0:00:34.9]} 31. Kf3 {[%clk 0:00:03.9]} 31... Bxd3 {[%clk 0:00:27.5]} 32.
exd3 {[%clk 0:00:03.9]} 32... Nd2+ {[%clk 0:00:27]} 33. Ke2 {[%clk 0:00:03.3]}
33... Nc4+ {[%clk 0:00:23.5]} 34. Kd1 {[%clk 0:00:03.5]} 34... Nxa3 {[%clk
0:00:23.4]} 35. bxa3 {[%clk 0:00:02.8]} 35... Rc3 {[%clk 0:00:22.3]} 36. e5
{[%clk 0:00:01.3]} 36... Rxa3 {[%clk 0:00:21.9]} 37. Kc2 {[%clk 0:00:02.2]}
37... Ra2+ {[%clk 0:00:21.6]} 38. Kc3 {[%clk 0:00:02.6]} 38... a3 {[%clk
0:00:20.8]} 39. d4 {[%clk 0:00:02.8]} 39... Ra1 {[%clk 0:00:20.1]} 40. Bc4
{[%clk 0:00:03.4]} 40... Rc1+ {[%clk 0:00:19.4]} 41. Kb3 {[%clk 0:00:03.6]}
41... Rxc4 {[%clk 0:00:19.1]} 42. Kxc4 {[%clk 0:00:04.4]} 42... a2 {[%clk
0:00:19.7]} 0-1

[Event "Early-Titled-Tuesday-Blitz-March-26-2024"]
[Site "Chess.com"]
[Date "2024.03.26"]
[Round "1"]
[White "gurelediz"]
[Black "DCacheiro"]
[Result "1-0"]
[WhiteElo "2951"]
[BlackElo "2519"]
[TimeControl "180+1"]
[EndTime "8:07:40 PDT"]
[Termination "gurelediz won by resignation"]

1. e4 {[%clk 0:02:56.9]} 1... c5 {[%clk 0:03:00.2]} 2. Nf3 {[%clk 0:02:57.2]}
2... d6 {[%clk 0:03:00.7]} 3. d4 {[%clk 0:02:57.7]} 3... cxd4 {[%clk 0:03:01.6]}
4. Nxd4 {[%clk 0:02:58.6]} 4... Nf6 {[%clk 0:03:02.1]} 5. Nc3 {[%clk 0:02:59.3]}
5... a6 {[%clk 0:03:02.8]} 6. Be3 {[%clk 0:03:00]} 6... e5 {[%clk 0:03:02.8]} 7.
Nf3 {[%clk 0:03:00.7]} 7... Be7 {[%clk 0:03:02.3]} 8. Bc4 {[%clk 0:03:01]} 8...
Be6 {[%clk 0:02:59.3]} 9. Bxe6 {[%clk 0:03:01]} 9... fxe6 {[%clk 0:03:00.2]} 10.
O-O {[%clk 0:03:01.7]} 10... Nbd7 {[%clk 0:02:55.3]} 11. Qd3 {[%clk 0:02:55.1]}
11... Rc8 {[%clk 0:02:54.3]} 12. Rad1 {[%clk 0:02:37.1]} 12... b5 {[%clk
0:02:50.3]} 13. Ng5 {[%clk 0:02:27.1]} 13... Nf8 {[%clk 0:02:48.6]} 14. f4
{[%clk 0:02:27.6]} 14... b4 {[%clk 0:02:33.4]} 15. fxe5 {[%clk 0:02:20.3]} 15...
bxc3 {[%clk 0:02:32.8]} 16. exd6 {[%clk 0:02:03.9]} 16... Qxd6 {[%clk
0:02:14.4]} 17. Qxd6 {[%clk 0:02:02.1]} 17... Bxd6 {[%clk 0:02:15.3]} 18. Rxd6
{[%clk 0:02:02.5]} 18... cxb2 {[%clk 0:02:15]} 19. Rb6 {[%clk 0:01:46.1]} 19...
Rxc2 {[%clk 0:02:12]} 20. Rb8+ {[%clk 0:01:45.1]} 20... Ke7 {[%clk 0:02:06.9]}
21. e5 {[%clk 0:01:42.2]} 21... Ng6 {[%clk 0:01:54]} 22. exf6+ {[%clk
0:01:37.6]} 22... gxf6 {[%clk 0:01:54.9]} 23. Rb7+ {[%clk 0:01:37.3]} 23... Kd6
{[%clk 0:01:53.4]} 24. Ne4+ {[%clk 0:01:31.1]} 24... Kc6 {[%clk 0:01:52]} 25.
Rb6+ {[%clk 0:01:31.7]} 25... Kc7 {[%clk 0:01:48]} 26. Rxe6 {[%clk 0:01:08.3]}
26... Rb8 {[%clk 0:01:32.9]} 27. Rb1 {[%clk 0:01:08.2]} 27... Ne5 {[%clk
0:01:04.8]} 28. Nxf6 {[%clk 0:01:02.1]} 28... Nd3 {[%clk 0:00:53.4]} 29. Nd5+
{[%clk 0:00:47.5]} 29... Kd7 {[%clk 0:00:48.8]} 30. Rxa6 {[%clk 0:00:48.1]}
30... Rc1+ {[%clk 0:00:26.6]} 31. Bxc1 {[%clk 0:00:48]} 31... bxc1=Q+ {[%clk
0:00:27.5]} 32. Rxc1 {[%clk 0:00:48.6]} 32... Nxc1 {[%clk 0:00:28.4]} 33. h3
{[%clk 0:00:49]} 33... Rb2 {[%clk 0:00:19.4]} 34. a4 {[%clk 0:00:48.7]} 34...
Nd3 {[%clk 0:00:19.2]} 35. Rh6 {[%clk 0:00:43]} 35... Ra2 {[%clk 0:00:16.6]} 36.
Rxh7+ {[%clk 0:00:42.3]} 36... Ke6 {[%clk 0:00:17.3]} 37. Nc3 {[%clk 0:00:36.3]}
37... Rc2 {[%clk 0:00:15.7]} 38. Nb5 {[%clk 0:00:29.9]} 38... Ra2 {[%clk
0:00:15.9]} 39. Rh6+ {[%clk 0:00:27.1]} 39... Ke7 {[%clk 0:00:14.3]} 40. Nc3
{[%clk 0:00:24.6]} 40... Rc2 {[%clk 0:00:13.8]} 41. Nd5+ {[%clk 0:00:25.2]}
41... Kf7 {[%clk 0:00:14]} 42. Rf6+ {[%clk 0:00:19.4]} 42... Kg7 {[%clk
0:00:14]} 43. Rf3 {[%clk 0:00:19.5]} 43... Ne1 {[%clk 0:00:09.6]} 44. Rf2 {[%clk
0:00:15]} 44... Rc5 {[%clk 0:00:09.9]} 45. Rd2 {[%clk 0:00:14.1]} 45... Nc2
{[%clk 0:00:08.5]} 46. Nf4 {[%clk 0:00:11.3]} 46... Ne3 {[%clk 0:00:07.9]} 47.
Ne6+ {[%clk 0:00:11.6]} 1-0

[Event "Early-Titled-Tuesday-Blitz-March-26-2024"]
[Site "Chess.com"]
[Date "2024.03.26"]
[Round "1"]
[White "kidagent"]
[Black "SmirnovAlexandrA"]
[Result "0-1"]
[WhiteElo "2308"]
[BlackElo "2643"]
[TimeControl "180+1"]
[EndTime "8:07:40 PDT"]
[Termination "SmirnovAlexandrA won by checkmate"]

1. e4 {[%clk 0:02:55.1]} 1... c5 {[%clk 0:02:59.2]} 2. Nf3 {[%clk 0:02:54.9]}
2... d6 {[%clk 0:02:59.3]} 3. d4 {[%clk 0:02:55]} 3... cxd4 {[%clk 0:03:00.2]}
4. Nxd4 {[%clk 0:02:55.9]} 4... Nf6 {[%clk 0:03:00.4]} 5. Nc3 {[%clk 0:02:56]}
5... a6 {[%clk 0:03:00.6]} 6. Bg5 {[%clk 0:02:56.7]} 6... e6 {[%clk 0:03:00.6]}
7. f4 {[%clk 0:02:56.7]} 7... Be7 {[%clk 0:03:00.6]} 8. Qf3 {[%clk 0:02:56]}
8... Qc7 {[%clk 0:03:00.9]} 9. O-O-O {[%clk 0:02:55.7]} 9... Nbd7 {[%clk
0:03:00.7]} 10. Bd3 {[%clk 0:02:55.3]} 10... h6 {[%clk 0:03:00.2]} 11. Bh4
{[%clk 0:02:53.3]} 11... g5 {[%clk 0:02:53.1]} 12. fxg5 {[%clk 0:02:52.1]} 12...
Ne5 {[%clk 0:02:53.2]} 13. Qe2 {[%clk 0:02:49.1]} 13... Nfd7 {[%clk 0:02:43.5]}
14. Qh5 {[%clk 0:02:34.5]} 14... Ng6 {[%clk 0:02:33]} 15. Nxe6 {[%clk
0:02:32.2]} 15... Qa5 {[%clk 0:02:20.6]} 16. Ng7+ {[%clk 0:02:23.1]} 16... Kf8
{[%clk 0:02:16.5]} 17. gxh6 {[%clk 0:02:21.3]} 17... Qxh5 {[%clk 0:02:11.8]} 18.
Bxe7+ {[%clk 0:02:21.1]} 18... Nxe7 {[%clk 0:02:04.5]} 19. Nxh5 {[%clk 0:02:22]}
19... Rxh6 {[%clk 0:02:05.1]} 20. Nf4 {[%clk 0:02:18.1]} 20... Ne5 {[%clk
0:02:03.1]} 21. Be2 {[%clk 0:02:12.7]} 21... b5 {[%clk 0:02:01.1]} 22. h3 {[%clk
0:02:09.1]} 22... Bb7 {[%clk 0:01:47.2]} 23. Ncd5 {[%clk 0:02:07.5]} 23... Nxd5
{[%clk 0:01:42.1]} 24. Nxd5 {[%clk 0:02:07]} 24... Rc8 {[%clk 0:01:37.6]} 25.
Rhf1 {[%clk 0:02:04.5]} 25... Bxd5 {[%clk 0:01:02.2]} 26. Rxd5 {[%clk
0:01:47.3]} 26... Ke7 {[%clk 0:01:03.1]} 27. b3 {[%clk 0:01:39.1]} 27... Rh4
{[%clk 0:01:00.5]} 28. Bf3 {[%clk 0:01:35.1]} 28... Rc3 {[%clk 0:00:57.6]} 29.
Kd2 {[%clk 0:01:31.6]} 29... b4 {[%clk 0:00:54]} 30. a3 {[%clk 0:01:28.8]} 30...
Nxf3+ {[%clk 0:00:46.8]} 31. gxf3 {[%clk 0:01:25.6]} 31... Rxh3 {[%clk 0:00:47]}
32. axb4 {[%clk 0:01:22]} 32... Rcxf3 {[%clk 0:00:47.1]} 33. Rxf3 {[%clk
0:01:20.8]} 33... Rxf3 {[%clk 0:00:48]} 34. Ra5 {[%clk 0:01:21]} 34... Ke6
{[%clk 0:00:40.9]} 35. Rxa6 {[%clk 0:01:20.7]} 35... Rf2+ {[%clk 0:00:41.5]} 36.
Kd3 {[%clk 0:01:20]} 36... Rf3+ {[%clk 0:00:38.5]} 37. Ke2 {[%clk 0:01:19.1]}
37... Rh3 {[%clk 0:00:37.2]} 38. Ra5 {[%clk 0:01:17.5]} 38... Rc3 {[%clk
0:00:32.5]} 39. Kd2 {[%clk 0:01:16.6]} 39... Rf3 {[%clk 0:00:32.7]} 40. Rd5
{[%clk 0:01:12.9]} 40... Rf4 {[%clk 0:00:26.8]} 41. Ke3 {[%clk 0:01:09.9]} 41...
Rh4 {[%clk 0:00:27.7]} 42. b5 {[%clk 0:01:04.5]} 42... Rh2 {[%clk 0:00:28.1]}
43. Rd2 {[%clk 0:01:02.7]} 43... Rh3+ {[%clk 0:00:25.8]} 44. Kd4 {[%clk
0:01:02.4]} 44... Rh4 {[%clk 0:00:26.3]} 45. Rf2 {[%clk 0:01:00.5]} 45... d5
{[%clk 0:00:24]} 46. Re2 {[%clk 0:00:59.3]} 46... f5 {[%clk 0:00:22.2]} 47. b6
{[%clk 0:00:59.4]} 47... dxe4 {[%clk 0:00:18.7]} 48. b7 {[%clk 0:00:58.6]} 48...
Rh8 {[%clk 0:00:17.3]} 49. Kc5 {[%clk 0:00:57.7]} 49... Ke5 {[%clk 0:00:14.2]}
50. Kb6 {[%clk 0:00:57]} 50... f4 {[%clk 0:00:14.6]} 51. c4 {[%clk 0:00:54.1]}
51... f3 {[%clk 0:00:14.3]} 52. Ra2 {[%clk 0:00:51.2]} 52... e3 {[%clk
0:00:14.3]} 53. c5 {[%clk 0:00:51.9]} 53... e2 {[%clk 0:00:11.8]} 54. Ra1 {[%clk
0:00:43.9]} 54... f2 {[%clk 0:00:11.7]} 55. c6 {[%clk 0:00:44.6]} 55... e1=Q
{[%clk 0:00:11.5]} 56. Rxe1+ {[%clk 0:00:44.3]} 56... fxe1=Q {[%clk 0:00:12.4]}
57. c7 {[%clk 0:00:44.7]} 57... Qb4+ {[%clk 0:00:12.9]} 58. Ka7 {[%clk
0:00:44.5]} 58... Qa5# {[%clk 0:00:11.7]} 0-1

[Event "Early-Titled-Tuesday-Blitz-March-26-2024"]
[Site "Chess.com"]
[Date "2024.03.26"]
[Round "1"]
[White "ogpin"]
[Black "WilsonPalencia21"]
[Result "1-0"]
[WhiteElo "2256"]
[BlackElo "2601"]
[TimeControl "180+1"]
[EndTime "8:07:40 PDT"]
[Termination "ogpin won on time"]

1. e4 {[%clk 0:03:00.9]} 1... c5 {[%clk 0:02:58.9]} 2. Nf3 {[%clk 0:03:01.2]}
2... d6 {[%clk 0:02:58.7]} 3. Bb5+ {[%clk 0:03:01.3]} 3... Nd7 {[%clk
0:02:58.7]} 4. a4 {[%clk 0:03:01.4]} 4... Nf6 {[%clk 0:02:58.4]} 5. Nc3 {[%clk
0:03:01.7]} 5... g6 {[%clk 0:02:57.2]} 6. a5 {[%clk 0:03:01.2]} 6... a6 {[%clk
0:02:56]} 7. Bc4 {[%clk 0:03:01.6]} 7... Bg7 {[%clk 0:02:55.9]} 8. Bxf7+ {[%clk
0:03:02]} 8... Kxf7 {[%clk 0:02:52.7]} 9. Ng5+ {[%clk 0:03:02.3]} 9... Kg8
{[%clk 0:02:53.1]} 10. Ne6 {[%clk 0:03:02.9]} 10... Qe8 {[%clk 0:02:53.2]} 11.
Nc7 {[%clk 0:03:03.5]} 11... Qd8 {[%clk 0:02:53.2]} 12. Nxa8 {[%clk 0:03:03.8]}
12... h5 {[%clk 0:02:44.2]} 13. d3 {[%clk 0:03:02.2]} 13... h4 {[%clk
0:02:43.4]} 14. h3 {[%clk 0:03:00.4]} 14... Nh5 {[%clk 0:02:24.3]} 15. Nb6
{[%clk 0:02:54.8]} 15... Nxb6 {[%clk 0:02:23.6]} 16. axb6 {[%clk 0:02:55.7]}
16... Qxb6 {[%clk 0:02:24.2]} 17. Nd5 {[%clk 0:02:55.6]} 17... Qd8 {[%clk
0:02:24.3]} 18. Bg5 {[%clk 0:02:54.4]} 18... Nf6 {[%clk 0:02:19.5]} 19. Bxf6
{[%clk 0:02:52.3]} 19... exf6 {[%clk 0:02:18.8]} 20. Qf3 {[%clk 0:02:52]} 20...
Be6 {[%clk 0:02:18.1]} 21. O-O {[%clk 0:02:51.7]} 21... Rh5 {[%clk 0:02:10.3]}
22. Nf4 {[%clk 0:02:50.7]} 22... Re5 {[%clk 0:02:07.3]} 23. Nxe6 {[%clk
0:02:47.3]} 23... Rxe6 {[%clk 0:02:08.2]} 24. e5 {[%clk 0:02:46]} 24... d5
{[%clk 0:01:55.6]} 25. exf6 {[%clk 0:02:36.5]} 25... Rxf6 {[%clk 0:01:54.4]} 26.
Qg4 {[%clk 0:02:33.8]} 26... Rb6 {[%clk 0:01:53]} 27. Rae1 {[%clk 0:02:09.5]}
27... Qf6 {[%clk 0:01:38.8]} 28. Re8+ {[%clk 0:02:07]} 28... Kh7 {[%clk
0:01:38.7]} 29. b3 {[%clk 0:02:00.9]} 29... Rb4 {[%clk 0:01:36.1]} 30. Qe6
{[%clk 0:01:55]} 30... Qg5 {[%clk 0:01:35.9]} 31. Re1 {[%clk 0:01:44.8]} 31...
Rf4 {[%clk 0:01:25.8]} 32. Qg8+ {[%clk 0:01:41.6]} 32... Kh6 {[%clk 0:01:25.1]}
33. R1e7 {[%clk 0:01:36.5]} 33... Qf6 {[%clk 0:01:23]} 34. Re2 {[%clk
0:01:12.4]} 34... Rf5 {[%clk 0:00:58.7]} 35. R8e6 {[%clk 0:01:06.7]} 35... Qa1+
{[%clk 0:00:56.6]} 36. Kh2 {[%clk 0:01:06.1]} 36... Qd4 {[%clk 0:00:53.7]} 37.
Qe8 {[%clk 0:00:48.4]} 37... Rg5 {[%clk 0:00:32.5]} 38. Qe7 {[%clk 0:00:39]}
38... Qf4+ {[%clk 0:00:31]} 39. Kg1 {[%clk 0:00:38.9]} 39... Qf5 {[%clk
0:00:26.3]} 40. R6e3 {[%clk 0:00:33]} 40... d4 {[%clk 0:00:23.4]} 41. Rf3 {[%clk
0:00:32.3]} 41... Qd5 {[%clk 0:00:18.6]} 42. Qe4 {[%clk 0:00:31.5]} 42... Qd7
{[%clk 0:00:16.8]} 43. Qxh4+ {[%clk 0:00:31.3]} 43... Rh5 {[%clk 0:00:16.6]} 44.
Qf4+ {[%clk 0:00:29.8]} 44... Kh7 {[%clk 0:00:16.6]} 45. Qf7 {[%clk 0:00:29.7]}
45... Qc6 {[%clk 0:00:14.8]} 46. Re7 {[%clk 0:00:29.7]} 1-0

[Event "Early-Titled-Tuesday-Blitz-March-26-2024"]
[Site "Chess.com"]
[Date "2024.03.26"]
[Round "1"]
[White "sorch29"]
[Black "Mikhail_Bryakin"]
[Result "0-1"]
[WhiteElo "2473"]
[BlackElo "2853"]
[TimeControl "180+1"]
[EndTime "8:07:41 PDT"]
[Termination "Mikhail_Bryakin won by checkmate"]

1. d4 {[%clk 0:03:00.9]} 1... Nf6 {[%clk 0:02:57.1]} 2. c4 {[%clk 0:03:00.7]}
2... c5 {[%clk 0:02:56.9]} 3. Nf3 {[%clk 0:02:59.8]} 3... cxd4 {[%clk
0:02:56.7]} 4. Nxd4 {[%clk 0:03:00.7]} 4... Nc6 {[%clk 0:02:57.3]} 5. Nc3 {[%clk
0:03:00.4]} 5... d5 {[%clk 0:02:56.3]} 6. e3 {[%clk 0:02:44.3]} 6... Nxd4 {[%clk
0:02:48.1]} 7. exd4 {[%clk 0:02:44.1]} 7... e6 {[%clk 0:02:45.6]} 8. cxd5 {[%clk
0:02:26.2]} 8... Nxd5 {[%clk 0:02:45.5]} 9. Qb3 {[%clk 0:02:17]} 9... Nxc3
{[%clk 0:02:42.2]} 10. bxc3 {[%clk 0:02:16.3]} 10... Be7 {[%clk 0:02:42.5]} 11.
Be2 {[%clk 0:02:09.9]} 11... O-O {[%clk 0:02:40.1]} 12. O-O {[%clk 0:02:10.1]}
12... Qc7 {[%clk 0:02:40.2]} 13. Bf3 {[%clk 0:02:07.6]} 13... Rb8 {[%clk
0:02:39.5]} 14. Rd1 {[%clk 0:01:41.6]} 14... b6 {[%clk 0:02:38.6]} 15. c4 {[%clk
0:01:21.5]} 15... Bb7 {[%clk 0:02:37.4]} 16. Bxb7 {[%clk 0:01:14.6]} 16... Qxb7
{[%clk 0:02:33.8]} 17. d5 {[%clk 0:01:13.1]} 17... Bf6 {[%clk 0:02:32.3]} 18.
Rb1 {[%clk 0:01:10.8]} 18... Rbc8 {[%clk 0:02:27.3]} 19. Ba3 {[%clk 0:01:10.2]}
19... Rfe8 {[%clk 0:02:26.7]} 20. Re1 {[%clk 0:01:06.9]} 20... Qd7 {[%clk
0:02:22.3]} 21. Rbd1 {[%clk 0:01:06.2]} 21... exd5 {[%clk 0:02:21.3]} 22. cxd5
{[%clk 0:01:05.9]} 22... Rxe1+ {[%clk 0:02:19.5]} 23. Rxe1 {[%clk 0:01:06.1]}
23... h6 {[%clk 0:02:20]} 24. Rd1 {[%clk 0:00:54.6]} 24... Rc3 {[%clk 0:02:19]}
25. Qb4 {[%clk 0:00:50.4]} 25... Rc5 {[%clk 0:02:13.6]} 26. Qb3 {[%clk 0:00:45]}
26... Rc3 {[%clk 0:02:07.1]} 27. Qb4 {[%clk 0:00:44.9]} 27... Rc8 {[%clk
0:02:05.5]} 28. g3 {[%clk 0:00:41.6]} 28... h5 {[%clk 0:02:04]} 29. h4 {[%clk
0:00:39.9]} 29... Qf5 {[%clk 0:02:01.4]} 30. d6 {[%clk 0:00:31.3]} 30... Rc2
{[%clk 0:02:01.4]} 31. Qe1 {[%clk 0:00:26.2]} 31... Qd7 {[%clk 0:01:51.6]} 32.
Bc1 {[%clk 0:00:13.4]} 32... Rc6 {[%clk 0:01:44.4]} 33. Bf4 {[%clk 0:00:12.8]}
33... Rc8 {[%clk 0:01:44.6]} 34. Qe2 {[%clk 0:00:12.8]} 34... g6 {[%clk
0:01:41.8]} 35. Bg5 {[%clk 0:00:13]} 35... Bxg5 {[%clk 0:01:37.2]} 36. hxg5
{[%clk 0:00:13.9]} 36... Re8 {[%clk 0:01:37.7]} 37. Qd3 {[%clk 0:00:12.6]} 37...
Rd8 {[%clk 0:01:34.6]} 38. Qd4 {[%clk 0:00:12.2]} 38... b5 {[%clk 0:01:30.8]}
39. Qf6 {[%clk 0:00:12.6]} 39... h4 {[%clk 0:01:21]} 40. Qf4 {[%clk 0:00:11.5]}
40... hxg3 {[%clk 0:01:20.6]} 41. Qxg3 {[%clk 0:00:12]} 41... Qf5 {[%clk
0:01:20.6]} 42. Kg2 {[%clk 0:00:09.8]} 42... Qe4+ {[%clk 0:01:20.3]} 43. Qf3
{[%clk 0:00:09.1]} 43... Qe6 {[%clk 0:01:18.6]} 44. Qf4 {[%clk 0:00:08.8]} 44...
a6 {[%clk 0:01:15.5]} 45. Rd2 {[%clk 0:00:08.8]} 45... a5 {[%clk 0:01:15.4]} 46.
Qf6 {[%clk 0:00:08.9]} 46... Qg4+ {[%clk 0:01:07.9]} 47. Kf1 {[%clk 0:00:08]}
47... Rc8 {[%clk 0:01:05]} 48. f3 {[%clk 0:00:04.1]} 48... Rc1+ {[%clk
0:01:03.8]} 49. Ke2 {[%clk 0:00:04.4]} 49... Qc4+ {[%clk 0:00:58.5]} 50. Kf2
{[%clk 0:00:03]} 50... Qf1+ {[%clk 0:00:56.6]} 51. Ke3 {[%clk 0:00:03.5]} 51...
Re1+ {[%clk 0:00:53.3]} 52. Kf4 {[%clk 0:00:02.6]} 52... Qc4+ {[%clk 0:00:51.6]}
53. Qd4 {[%clk 0:00:02.6]} 53... Qe6 {[%clk 0:00:41.3]} 54. d7 {[%clk
0:00:03.5]} 54... Qf5+ {[%clk 0:00:41.4]} 55. Kg3 {[%clk 0:00:03.9]} 55... Qxg5+
{[%clk 0:00:42]} 56. Kf2 {[%clk 0:00:04]} 56... Qg1# {[%clk 0:00:41.9]} 0-1

[Event "Early-Titled-Tuesday-Blitz-March-26-2024"]
[Site "Chess.com"]
[Date "2024.03.26"]
[Round "1"]
[White "Ticoluis"]
[Black "JimDiGrease"]
[Result "0-1"]
[WhiteElo "2522"]
[BlackElo "2967"]
[TimeControl "180+1"]
[EndTime "8:07:44 PDT"]
[Termination "JimDiGrease won by resignation"]

1. e4 {[%clk 0:02:26.3]} 1... c5 {[%clk 0:02:59.7]} 2. Nf3 {[%clk 0:02:25.4]}
2... d6 {[%clk 0:03:00.4]} 3. Bb5+ {[%clk 0:02:24.4]} 3... Nd7 {[%clk
0:02:59.3]} 4. O-O {[%clk 0:02:23]} 4... a6 {[%clk 0:02:57.2]} 5. Bxd7+ {[%clk
0:02:22.6]} 5... Bxd7 {[%clk 0:02:58.1]} 6. c3 {[%clk 0:02:20.8]} 6... Nf6
{[%clk 0:02:56.2]} 7. d4 {[%clk 0:02:21.3]} 7... e6 {[%clk 0:02:52.8]} 8. Re1
{[%clk 0:02:19.8]} 8... Be7 {[%clk 0:02:52.9]} 9. Bg5 {[%clk 0:02:20.1]} 9...
O-O {[%clk 0:02:51]} 10. Nbd2 {[%clk 0:02:19]} 10... Bc6 {[%clk 0:02:47.6]} 11.
Qe2 {[%clk 0:02:09.1]} 11... h6 {[%clk 0:02:44.5]} 12. Bh4 {[%clk 0:02:07.8]}
12... cxd4 {[%clk 0:02:36.8]} 13. Nxd4 {[%clk 0:02:06.4]} 13... Bd7 {[%clk
0:02:26.7]} 14. Rad1 {[%clk 0:02:04]} 14... Rc8 {[%clk 0:02:24.9]} 15. Bg3
{[%clk 0:02:02.9]} 15... b5 {[%clk 0:02:11.6]} 16. e5 {[%clk 0:02:00.4]} 16...
dxe5 {[%clk 0:02:10.6]} 17. Bxe5 {[%clk 0:02:00.7]} 17... Qb6 {[%clk 0:02:10]}
18. N2f3 {[%clk 0:01:59.9]} 18... Rfd8 {[%clk 0:02:09.3]} 19. h3 {[%clk
0:01:57.8]} 19... Nd5 {[%clk 0:01:47.3]} 20. Bg3 {[%clk 0:01:54.9]} 20... Qc5
{[%clk 0:01:37.3]} 21. Ne5 {[%clk 0:01:50.3]} 21... Be8 {[%clk 0:01:37.1]} 22.
a3 {[%clk 0:01:43.5]} 22... Nb6 {[%clk 0:01:14.4]} 23. Qg4 {[%clk 0:01:33.3]}
23... Nc4 {[%clk 0:00:59.8]} 24. Nxc4 {[%clk 0:01:27.7]} 24... Qxc4 {[%clk
0:00:58.9]} 25. Be5 {[%clk 0:01:24.2]} 25... Bf8 {[%clk 0:00:55.6]} 26. Bf6
{[%clk 0:01:12.8]} 26... Rd5 {[%clk 0:00:49.9]} 27. Re3 {[%clk 0:01:09]} 27...
Bd7 {[%clk 0:00:27]} 28. Be5 {[%clk 0:00:54]} 28... f6 {[%clk 0:00:17.9]} 29.
Bxf6 {[%clk 0:00:52.9]} 29... e5 {[%clk 0:00:18.4]} 30. Qg6 {[%clk 0:00:41.3]}
30... exd4 {[%clk 0:00:16.4]} 31. Rg3 {[%clk 0:00:39.5]} 31... Bf5 {[%clk
0:00:11.5]} 32. Qxh6 {[%clk 0:00:31.9]} 32... Qc7 {[%clk 0:00:11.8]} 33. Rg5
{[%clk 0:00:26.1]} 33... Be4 {[%clk 0:00:07.5]} 34. Rxd4 {[%clk 0:00:23.6]}
34... Rxg5 {[%clk 0:00:05.5]} 35. Qxg5 {[%clk 0:00:23.6]} 35... Qc6 {[%clk
0:00:05.4]} 36. Be5 {[%clk 0:00:19.7]} 36... Re8 {[%clk 0:00:06]} 37. f3 {[%clk
0:00:18.7]} 37... Bd5 {[%clk 0:00:06]} 38. Rg4 {[%clk 0:00:17.7]} 38... Qb6+
{[%clk 0:00:05.3]} 39. Kh1 {[%clk 0:00:17.6]} 39... Qb7 {[%clk 0:00:06.1]} 40.
Bd4 {[%clk 0:00:15.5]} 40... Qf7 {[%clk 0:00:05.6]} 41. Rf4 {[%clk 0:00:14.5]}
41... Qd7 {[%clk 0:00:05.6]} 42. Rg4 {[%clk 0:00:13.5]} 42... Re1+ {[%clk
0:00:05.4]} 43. Bg1 {[%clk 0:00:12.4]} 43... Bc5 {[%clk 0:00:05]} 0-1